[Event "GER-ch Youth-U16 2022"]
[Site "Willingen"]
[Date "2022.06.06"]
[Round "3.5"]
[White "Bui, Bao Anh Le"]
[Black "Ohler, Julius"]
[Result "0-1"]
[ECO "B15"]
[WhiteElo "2127"]
[BlackElo "2011"]
[Annotator "TA"]
[PlyCount "70"]
[EventDate "2022.06.05"]
[EventType "swiss"]
[EventRounds "9"]
[EventCountry "GER"]
[SourceTitle "playchess.com"]
[Source "ChessBase"]
[SourceQuality "1"]
[TimeControl "40/4500+30:900+30"]

{[%evp 10,70,28,18,24,8,34,3,21,17,14,11,14,-24,56,-102,-106,-177,-181,-159,0,0,0,0,0,0,0,0,0,-63,-67,-65,0,-50,-50,-62,-44,-73,-77,-77,0,-100,-83,-84,-92,-149,-148,-181,-183,-202,-216,-193,-213,-275,-270,-254,-229,-348,-351,-601,-530,-938,-929]} 1. e4 {[%emt 0:00:00]} c6 {[%emt 0:00:00]} 2. d4 {[%emt 0:00:00]} d5 {[%emt 0:00:00]} 3. Nc3 {[%emt 0:00:00]} dxe4 {[%emt 0:00:00]} 4. Nxe4 {[%emt 0:00:00]} Nf6 {[%emt 0:00:00]} 5. Nxf6+ {[%emt 0:00:00]} exf6 {[%emt 0:00:00]} 6. Be3 {[%emt 0:00:00]} Bd6 {[%emt 0:00:00] B15: Caro-Kann: 3 Nc3: 3...g6 and 3...dxe4 4 Nxe4 Nf6 5 Nxf6+ exf6.} 7. Bd3 {[%emt 0:00:00]} O-O {[%emt 0:00:00]} 8. Ne2 {[%emt 0:00:00]} Re8 {[%emt 0:00:00] The position is equal.} 9. O-O {[%emt 0:00:00]} Bg4 {[%emt 0:00:00]} 10. c4 {[%emt 0:00:00]} f5 {[%emt 0:00:00]} 11. h3 {[%emt 0:30:53] [#]} Qh4 $146 {[%emt 0:27:26]} ({Better is} 11... Bxe2 $11 12. Bxe2 (12. Qxe2 f4 $17) 12... Bc7) ({Predecessor:} 11... f4 12. hxg4 fxe3 13. f4 Nd7 14. g5 c5 15. d5 Nf8 16. Rf3 f6 17. gxf6 Qxf6 {0-1 (42) Hofmann,A (1972)-Lieder,K (2090) Halle/Saale 2006}) 12. Qc2 $2 {[%emt 0:03:03] [#]} (12. Qb3 $14 {stays ahead.} Bxe2 13. Bxe2) 12... Na6 $1 $17 {[%emt 0:04:29] White must now prevent ...Nb4.} 13. a3 {[%emt 0:06:56] [#] Prevents Nb4.} (13. Qb3 $17 {was necessary.} Nb4 14. Bxf5 Bxf5 15. c5) (13. Nf4 g5) 13... Bxh3 $1 $19 {[%emt 0:05:58][%mdl 512]} 14. gxh3 {[%emt 0:06:32]} f4 $2 {[%emt 0:01:08]} (14... Qxh3 $17 {[%csl Gd6][%cal Rh3h2]} 15. Nf4 Qh4 16. Bxf5 g6) 15. Bxh7+ $11 {[%emt 0:00:06]} Kh8 $1 {[%emt 0:05:34]} 16. Nxf4 {[%emt 0:03:41]} Bxf4 $40 {[%emt 0:00:30][%mdl 128] White needs to defend precisely.} 17. Bxf4 {[%emt 0:00:17]} Qxf4 {[%emt 0:00:04]} 18. Bf5 {[%emt 0:01:00]} g6 {[%emt 0:00:12]} 19. Bd3 {[%emt 0:00:48]} (19. Bg4 $1 $11) 19... Qg5+ {[%emt 0:03:42]} 20. Kh2 {[%emt 0:00:33]} Qf4+ {[%emt 0:00:22]} (20... Rad8 $15) 21. Kg2 {[%emt 0:00:29]} (21. Kg1 $11) 21... Qxd4 $15 {[%emt 0:14:30]} 22. Rad1 {[%emt 0:00:51]} Qf6 {[%emt 0:00:17] Black is more active.} 23. f4 {[%emt 0:05:13]} Re3 {[%emt 0:04:44] aiming for ...Qh4.} 24. Rf3 {[%emt 0:02:06] [#]} Rae8 {[%emt 0:00:42]} (24... Rxf3 $1 $17 25. Kxf3 Nc5) 25. Qf2 {[%emt 0:05:10]} (25. Rxe3 $11 Rxe3 26. Qf2) 25... Rxf3 $17 {[%emt 0:01:36]} 26. Kxf3 {[%emt 0:01:23]} Nc7 {[%emt 0:01:15][%cal Ba6c7,Bc7e6,Be6g7,Bg7h5,Bh5f4][%mdl 32]} 27. Kg3 {[%emt 0:12:58]} (27. Kg2 $142) 27... Ne6 {[%emt 0:01:58]} 28. Rd2 {[%emt 0:03:43]} Ng7 {[%emt 0:02:04]} 29. Kg2 {[%emt 0:01:48]} Nh5 {[%emt 0:04:46]} 30. f5 {[%emt 0:00:35] [#]} g5 {[%emt 0:01:01]} 31. Bb1 {[%emt 0:01:05]} Nf4+ {[%emt 0:00:31]} 32. Kh2 {[%emt 0:01:10]} Qe5 {[%emt 0:02:04] ...Kg7 is the strong threat.} ({Stronger than} 32... Qh6 33. Qg3 $19) 33. Qg3 {[%emt 0:01:05]} (33. h4 {is a better defense.} Kg7 34. Qd4 Qxd4 35. Rxd4) 33... f6 $19 {[%emt 0:00:51]} 34. Bd3 $2 {[%emt 0:00:32]} (34. Qc3 Qxc3 35. bxc3) 34... Rd8 {[%emt 0:00:52]} 35. h4 {[%emt 0:00:25]} Rxd3 {[%emt 0:00:16] Weighted Error Value: White=0.63/Black=0.20 (precise)} 0-1

[Event "GER-ch Youth-U16 2022"]
[Site "Willingen"]
[Date "2022.06.06"]
[Round "3.6"]
[White "Gluma, Christian"]
[Black "Bakiev, Diyor"]
[Result "0-1"]
[ECO "B12"]
[WhiteElo "2012"]
[BlackElo "2157"]
[Annotator "TA"]
[PlyCount "72"]
[EventDate "2022.06.05"]
[EventType "swiss"]
[EventRounds "9"]
[EventCountry "GER"]
[SourceTitle "playchess.com"]
[Source "ChessBase"]
[SourceQuality "1"]
[TimeControl "40/4500+30:900+30"]

{[%evp 9,72,8,7,0,17,10,8,0,10,10,10,-5,0,0,-10,-35,-20,-27,-35,-56,-64,-64,0,0,0,-24,-9,-16,-12,-39,-7,-58,-48,-66,-98,-139,-102,-104,-108,-164,-96,-154,-145,-250,-243,-289,-283,-315,-285,-525,-508,-529,-444,-739,-744,-1620,-2392,-2284,-2268,-4621,-2475,-2268,-1767,-6233,-5481]} 1. e4 {[%emt 0:00:00][%cal Be2e4,Be4e5][%mdl 32]} c6 {[%emt 0:00:00]} 2. d4 {[%emt 0:00:00]} d5 {[%emt 0:00:00]} 3. e5 {[%emt 0:00:00]} Bf5 {[%emt 0:00:00]} 4. h4 {[%emt 0:00:00]} h5 {[%emt 0:00:00]} 5. Bd3 {[%emt 0:00:00]} Bxd3 {[%emt 0:00:00]} 6. Qxd3 {[%emt 0:00:00][%cal Oe5e6] B12: Caro-Kann: Advance Variation.} Qa5+ {[%emt 0:00:00]} 7. Nd2 {[%emt 0:00:00][%cal Oe5e6] Threatens to win with e6!} e6 {[%emt 0:00:00]} 8. Ngf3 {[%emt 0:00:00] The position is equal.} Nh6 {[%emt 0:00:00]} 9. O-O {[%emt 0:00:00]} Nf5 {[%emt 0:00:00]} 10. c4 {[%emt 0:00:00] 10.Nb3 is the fancy move.} Be7 {[%emt 0:00:00]} 11. g3 {[%emt 0:00:00]} O-O {[%emt 0:00:00]} 12. b3 {[%emt 0:00:00]} Rd8 {[%emt 0:00:00]} 13. Bb2 {[%emt 0:06:13]} c5 {[%emt 0:00:00]} 14. cxd5 {[%emt 0:13:21]} Rxd5 {[%emt 0:00:00]} 15. Nc4 {[%emt 0:03:23]} Qd8 {[%emt 0:12:55][%cal Rc5d4]} 16. Ne3 {[%emt 0:06:56]} Nxe3 {[%emt 0:01:12]} 17. fxe3 {[%emt 0:00:11]} cxd4 {[%emt 0:06:59]} 18. exd4 {[%emt 0:02:09]} Nc6 {[%emt 0:00:44][%cal Oc6e5]} 19. Qe4 {[%emt 0:07:48] [#]} a5 $146 {[%emt 0:09:35][%cal Ba7a5,Ba5a4][%mdl 32]} ({Predecessor:} 19... Rc8 20. Rf2 Ra5 21. Nd2 Qd5 22. Qf4 Rf8 23. Nc4 Ra6 24. Ne3 Qb5 25. g4 Nb4 {½-½ (56) Martinez Alcantara,J (2520)-Svane,R (2587) Chess.com INT 2018}) 20. Kg2 {[%emt 0:11:26]} (20. Rf2 $11) 20... a4 $15 {[%emt 0:12:09]} 21. b4 {[%emt 0:06:45]} Nxb4 {[%emt 0:06:58]} 22. Bc1 {[%emt 0:06:14]} Nc6 {[%emt 0:09:00][%cal Rc6d4,Bb4c6,Bc6e7,Be7f5][%mdl 32]} 23. Bg5 {[%emt 0:05:11]} Qd7 {[%emt 0:02:08][%cal Rc6d4]} 24. Be3 {[%emt 0:02:09]} ({Don't go for} 24. Bxe7 $2 Nxe7 25. Rac1 (25. Ng5 Nf5 $17) 25... Nf5 $17) (24. Rad1 $17) 24... Rc8 {[%emt 0:03:07]} (24... Bd8 $19 25. Rab1 Ne7) 25. Rf2 {[%emt 0:02:15] [#]} ({Better is} 25. g4) 25... Bd8 $1 $17 {[%emt 0:06:11]} 26. Raf1 {[%emt 0:03:25] [#]} (26. Rc1 $17) 26... Ne7 $1 $19 {[%emt 0:01:03]} 27. Bc1 {[%emt 0:06:52]} Nf5 {[%emt 0:01:13]} 28. Bb2 {[%emt 0:01:08]} Be7 {[%emt 0:01:54]} 29. a3 $2 {[%emt 0:02:06]} (29. Kh3) 29... Rb5 {[%emt 0:00:59] Black is clearly winning.} 30. Kh2 {[%emt 0:01:22]} Qd5 {[%emt 0:02:46]} 31. Qf4 {[%emt 0:00:50]} (31. Qxd5 $142 Rxd5 32. Re2) 31... Rb3 {[%emt 0:00:40]} 32. g4 {[%emt 0:00:32]} hxg4 {[%emt 0:01:01]} 33. Qxg4 {[%emt 0:00:54]} Ne3 {[%emt 0:00:08]} 34. Qg1 {[%emt 0:00:27]} Nxf1+ {[%emt 0:00:41]} 35. Qxf1 {[%emt 0:00:05]} Qe4 {[%emt 0:01:51]} 36. Qh3 {[%emt 0:01:06]} Rc2 {[%emt 0:00:43] Weighted Error Value: White=0.85/Black=0.23 (precise)} 0-1

[Event "GER-ch Youth-U16 2022"]
[Site "Willingen"]
[Date "2022.06.06"]
[Round "3.7"]
[White "Trushko, Andrii"]
[Black "Heinrich, John"]
[Result "1-0"]
[ECO "A45"]
[WhiteElo "1897"]
[BlackElo "2011"]
[Annotator "TA"]
[PlyCount "87"]
[EventDate "2022.06.05"]
[EventType "swiss"]
[EventRounds "9"]
[EventCountry "GER"]
[SourceTitle "playchess.com"]
[Source "ChessBase"]
[SourceQuality "1"]
[TimeControl "40/4500+30:900+30"]

{[%evp 9,87,4,10,0,0,0,10,-29,-25,-21,-34,-23,-35,-28,-39,-28,-13,-24,-27,-28,0,0,0,0,5,0,0,0,0,0,0,0,0,0,0,0,37,0,32,0,22,25,104,22,35,0,50,40,96,93,95,85,97,93,94,101,106,98,89,90,101,125,114,95,147,142,207,213,193,186,322,297,301,217,232,230,384,376,793,775]} 1. d4 {[%emt 0:00:00]} Nf6 {[%emt 0:00:00]} 2. Bg5 {[%emt 0:00:00]} d5 {[%emt 0:00:00]} 3. e3 {[%emt 0:00:00]} c5 {[%emt 0:00:00]} 4. Bxf6 {[%emt 0:00:00]} exf6 {[%emt 0:00:00]} 5. c3 {[%emt 0:00:00]} Nc6 {[%emt 0:00:00]} 6. Nd2 {[%emt 0:00:00] D00: 1 d4 d5: Unusual lines.} cxd4 {[%emt 0:00:00]} 7. cxd4 {[%emt 0:00:00] [#]} Bf5 $146 {[%emt 0:00:00]} ({Predecessor:} 7... Bd6 8. g3 O-O 9. Bg2 Re8 10. Ne2 Bg4 11. Bf3 Bh3 12. a3 Qd7 13. Qb3 Ne7 {0-1 (37) Garcia Guerrero,I (2368)-Diamant,A (2542) Chess.com INT 2021}) 8. Ngf3 {[%emt 0:00:00] The position is equal.} Qb6 {[%emt 0:02:22]} 9. Qb3 {[%emt 0:00:00]} Nb4 {[%emt 0:05:26]} 10. Rc1 {[%emt 0:00:00] Prevents Nc2+.} a5 $1 {[%emt 0:09:52]} 11. a4 $1 {[%emt 0:03:45]} Bd6 {[%emt 0:14:39]} 12. Bb5+ {[%emt 0:02:17]} Ke7 {[%emt 0:00:27]} 13. Nh4 {[%emt 0:05:39]} Be6 {[%emt 0:02:57]} 14. O-O {[%emt 0:03:00]} Rhc8 {[%emt 0:02:32]} (14... g5 $5 15. Nhf3 Rhc8 $11) 15. Nb1 {[%emt 0:02:15]} Rxc1 {[%emt 0:05:28]} 16. Rxc1 {[%emt 0:00:04]} Qd8 {[%emt 0:00:21]} 17. Nc3 {[%emt 0:04:54]} Kf8 {[%emt 0:02:07]} 18. g3 {[%emt 0:02:26]} Rc8 {[%emt 0:02:09]} 19. Be2 {[%emt 0:01:38]} Bb8 {[%emt 0:02:02]} 20. Qd1 {[%emt 0:02:43]} g5 {[%emt 0:04:27]} 21. Ng2 {[%emt 0:00:17]} Kg7 {[%emt 0:00:55]} 22. Ne1 {[%emt 0:02:06]} h5 {[%emt 0:09:43]} 23. Nd3 {[%emt 0:04:39]} Nxd3 {[%emt 0:03:49]} 24. Qxd3 {[%emt 0:00:21]} (24. Bxd3 $5 {[%cal Rd1h5]} h4 25. Qh5 $11) 24... Qb6 {[%emt 0:04:21]} 25. Rc2 {[%emt 0:01:39][%cal Oc3d5]} Qb3 {[%emt 0:01:44]} (25... Qd8 $11 {keeps the balance.}) 26. Bd1 {[%emt 0:01:40]} (26. Bxh5 $16 Bd6 27. Bd1) 26... h4 $11 {[%emt 0:01:50]} 27. f4 {[%emt 0:00:44] Strongly threatening gxh4.} hxg3 {[%emt 0:02:33]} ({Black should try} 27... Rh8 $11) 28. hxg3 $14 {[%emt 0:00:06][%cal Bh2g3,Bg3g4,Bg4f5][%mdl 32] Rh2 is the strong threat.} Rh8 {[%emt 0:01:35]} (28... Qc4 $14 29. Qxc4 Rxc4) 29. Rh2 $16 {[%emt 0:00:59]} Qb4 {[%emt 0:01:47]} 30. Rxh8 {[%emt 0:00:28] The board is on fire. White is more active.} Kxh8 {[%emt 0:00:05]} 31. Bc2 {[%emt 0:00:10][%csl Gc2][%cal Rd3h7]} f5 {[%emt 0:00:47]} 32. g4 $40 {[%emt 0:00:25][%mdl 128] White attacks with force.} f6 {[%emt 0:03:25]} 33. gxf5 {[%emt 0:00:31]} Bf7 {[%emt 0:00:43]} 34. fxg5 {[%emt 0:09:19] aiming for Qf1.} Qd6 {[%emt 0:00:39] [#] ( -> ...Qh2+)} 35. Qe2 {[%emt 0:00:06] Against Qh2+} Qg3+ {[%emt 0:00:49]} 36. Kf1 {[%emt 0:00:02]} Qxg5 {[%emt 0:01:01]} (36... fxg5 $142 37. Bd1 Qh3+ 38. Ke1 g4) 37. Qf3 {[%emt 0:02:05]} Bh5 {[%emt 0:01:15]} (37... Qh4 $16 {might work better.} 38. Nxd5 Bg3) 38. Qh3 $18 {[%emt 0:00:01]} ({Stronger than} 38. Qxd5 Qxe3 39. Qd8+ Kh7 40. Qxb8 Qh3+ 41. Kf2 (41. Kg1 Qe3+ 42. Kg2 Qf3+ 43. Kh2 Qf2+ 44. Kh3 Qf3+ 45. Qg3 Qh1+ 46. Qh2 Qf3+ 47. Qg3 Qh1+ 48. Qh2 Qf3+ 49. Qg3 $11) 41... Qf3+ 42. Kg1 Qe3+ 43. Kg2 (43. Kf1 Qh3+ 44. Kg1 Qe3+ 45. Kg2 Qf3+ 46. Kh2 Qf2+ 47. Kh3 Qf3+ 48. Qg3 Qh1+ 49. Qh2 Qf3+ 50. Qg3 Qh1+ 51. Qh2 Qf3+ 52. Qg3 $11) 43... Qf3+ 44. Kh2 (44. Kg1 Qe3+ 45. Kg2 Qf3+ 46. Kh2 Qf2+ 47. Kh3 Qf3+ 48. Qg3 Qh1+ 49. Qh2 Qf3+ 50. Qg3 Qh1+ 51. Qh2 Qf3+ 52. Qg3 $11) 44... Qf2+ 45. Kh3 Qf3+ 46. Qg3 Qh1+ 47. Qh2 Qf3+ 48. Qg3 Qh1+ 49. Qh2 Qf3+ 50. Qg3 $11) 38... Kg7 {[%emt 0:01:05]} 39. Bd1 {[%emt 0:00:01]} Bxd1 {[%emt 0:01:16]} (39... Bf7 {was worth a try.} 40. Kf2 Bg8) 40. Nxd1 {[%emt 0:00:06]} Bg3 {[%emt 0:00:28]} 41. Kg2 {[%emt 0:15:45]} Bh4+ {[%emt 0:00:00] [#]} 42. Kf3 $1 {[%emt 0:00:00] And now Nc3 would win.} Kf8 $2 {[%emt 0:00:00]} (42... Be1 43. Qg4 Qxg4+ 44. Kxg4 Kf7) 43. Nc3 {[%emt 0:00:00]} Be1 $2 {[%emt 0:00:00]} (43... Qh5+ 44. Qg4 Qh6) 44. Nxd5 {[%emt 0:00:00] Weighted Error Value: White=0.11 (very precise) /Black=0.22 (precise)} ({Weaker is} 44. Qh8+ Kf7 45. Qh7+ (45. Nxd5 Qg3+ 46. Ke2 Qf2+ 47. Kd3 Qf1+ 48. Ke4 Qg2+ 49. Kd3 Qxd5 $17) 45... Kf8 $16) 1-0

[Event "GER-ch Youth-U16 2022"]
[Site "Willingen"]
[Date "2022.06.06"]
[Round "3.8"]
[White "Bungarten, Jona"]
[Black "Foerster-Yialamas, Lucas"]
[Result "0-1"]
[ECO "B21"]
[WhiteElo "1843"]
[BlackElo "2117"]
[Annotator "TA"]
[PlyCount "75"]
[EventDate "2022.06.05"]
[EventType "swiss"]
[EventRounds "9"]
[EventCountry "GER"]
[SourceTitle "playchess.com"]
[Source "ChessBase"]
[SourceQuality "1"]
[TimeControl "40/4500+30:900+30"]

{[%evp 17,75,-56,-56,-117,-111,-115,-110,-116,-112,-112,-98,-118,-112,-130,-110,-129,-130,-149,-127,-127,-109,-150,-124,-136,-148,-168,-97,-112,-95,-192,-182,-268,-264,-261,-260,-265,-258,-265,-112,-281,-288,-268,-222,-373,-363,-367,-275,-262,-279,-274,-260,-423,-416,-518,-512,-512,-509,-619,-616,-1648]} 1. e4 {[%emt 0:00:00]} c5 {[%emt 0:00:00]} 2. d4 {[%emt 0:00:00]} cxd4 {[%emt 0:00:00]} 3. c3 {[%emt 0:00:00]} dxc3 {[%emt 0:00:00]} 4. Nxc3 {[%emt 0:00:00]} Nc6 {[%emt 0:00:00]} 5. Nf3 {[%emt 0:00:00]} d6 {[%emt 0:00:00]} 6. Bc4 {[%emt 0:00:00]} a6 {[%emt 0:00:00]} 7. O-O {[%emt 0:00:00]} Nf6 {[%emt 0:00:00]} 8. Qe2 {[%emt 0:00:00]} Bg4 {[%emt 0:00:00]} 9. Rd1 {[%emt 0:02:55]} e6 {[%emt 0:00:00]} 10. Bf4 {[%emt 0:03:00] [#] Against Ne5. B21: Sicilian: 2 f4 and Morra Gambit.} ({Better is} 10. h3 $15 Bxf3 11. Qxf3) 10... Nh5 $1 $17 {[%emt 0:00:00]} 11. Qe3 {[%emt 0:12:43][%cal Of4d6]} Nxf4 {[%emt 0:00:00]} 12. Qxf4 {[%emt 0:00:05] Black is better.} Bxf3 {[%emt 0:00:00]} 13. Qxf3 {[%emt 0:00:16] [#]} Be7 $146 {[%emt 0:00:00]} ({Predecessor:} 13... Ne5 14. Qe2 Nxc4 15. Qxc4 Be7 16. e5 d5 17. Qg4 O-O 18. Rd3 Rc8 19. Rg3 g6 {0-1 (39) Solnicki,M (1474)-Paliszewski,D (1536) Solina 2012}) 14. Qg3 {[%emt 0:03:07]} O-O {[%emt 0:00:00]} 15. Rd2 {[%emt 0:01:51]} Qa5 {[%emt 0:00:00]} 16. Rad1 {[%emt 0:01:35]} Rac8 {[%emt 0:02:28]} 17. Bb3 {[%emt 0:01:52]} Rfd8 {[%emt 0:03:23]} 18. Qe3 {[%emt 0:06:03]} h6 {[%emt 0:03:16]} 19. Kh1 {[%emt 0:04:58]} Ne5 {[%emt 0:03:06]} 20. Qe2 {[%emt 0:03:48]} b5 {[%emt 0:02:54]} 21. Rd4 {[%emt 0:02:58]} Ng6 {[%emt 0:15:44]} (21... Nd7 $19 22. Qd2 Qb6) 22. g3 {[%emt 0:08:32]} Rc6 {[%emt 0:05:55]} 23. Qh5 {[%emt 0:03:39]} (23. f4 $17) 23... Bf6 $19 {[%emt 0:01:28]} 24. R4d3 {[%emt 0:00:42]} (24. Bxe6 $142 Bxd4 25. Qxg6) 24... Bxc3 {[%emt 0:03:16]} 25. bxc3 {[%emt 0:00:15][%cal Ob3e6]} Ne5 {[%emt 0:01:06]} ({Not} 25... Rxc3 26. Rxd6 Rxd6 27. Rxd6 Rc1+ 28. Rd1 $17) 26. Rd4 {[%emt 0:02:08]} Qxc3 {[%emt 0:08:03]} 27. f4 {[%emt 0:02:43] [#]} Nd7 {[%emt 0:03:06]} (27... Nc4 $1 $19 {and Black stays clearly on top. Hoping for ...Ne3.} 28. R4d3 Qb4) 28. e5 $2 {[%emt 0:07:55] White does not recover from this.} (28. Rxd6 $17 {is the only way for White.} Rxd6 29. Rxd6) 28... d5 {[%emt 0:03:29]} 29. f5 {[%emt 0:00:51]} Nf8 {[%emt 0:02:28]} ({Don't go for} 29... Nxe5 $2 30. fxe6 Rxe6 31. Bxd5 $19) 30. f6 $2 {[%emt 0:01:37]} (30. fxe6 fxe6 31. R4d3) 30... Ng6 {[%emt 0:00:56]} 31. Qe2 {[%emt 0:03:38]} gxf6 {[%emt 0:01:57]} 32. exf6 {[%emt 0:00:13]} Kh7 {[%emt 0:02:35]} 33. Kg2 {[%emt 0:02:08]} Rg8 {[%emt 0:02:34]} 34. R1d2 $2 {[%emt 0:01:43]} (34. Kh3 {was necessary.}) 34... e5 {[%emt 0:01:14][%cal Be6e5,Be5f4][%mdl 32]} 35. Rg4 {[%emt 0:01:25] [#] And now Rc2 would win.} Nf4+ $1 {[%emt 0:01:07][%mdl 512] Black is clearly winning.} 36. Rxf4 {[%emt 0:00:06]} exf4 {[%emt 0:00:10]} 37. Bc2+ {[%emt 0:02:12]} Kh8 {[%emt 0:00:02] ( -> ...f3+)} 38. Rxd5 {[%emt 0:00:11] Weighted Error Value: White=0.47/Black=0.16 (very precise)} 0-1

[Event "GER-ch Youth-U16 2022"]
[Site "Willingen"]
[Date "2022.06.06"]
[Round "3.9"]
[White "Rempe, Jonas"]
[Black "Jaskulski, Jan"]
[Result "0-1"]
[ECO "B89"]
[WhiteElo "1856"]
[BlackElo "1727"]
[Annotator "NA RC COMBH"]
[PlyCount "90"]
[EventDate "2022.06.05"]
[EventType "swiss"]
[EventRounds "9"]
[EventCountry "GER"]
[SourceTitle "playchess.com"]
[Source "ChessBase"]
[SourceQuality "1"]
[TimeControl "40/4500+30:900+30"]

1. e4 {[%emt 0:00:00]} c5 {[%emt 0:00:00]} 2. Nf3 {[%emt 0:00:00]} d6 {[%emt 0:00:00]} 3. d4 {[%emt 0:00:00]} cxd4 {[%emt 0:00:00]} 4. Nxd4 {[%emt 0:00:00]} Nf6 {[%emt 0:00:00]} 5. Nc3 {[%emt 0:00:00]} Nc6 {[%emt 0:00:00]} 6. Bc4 {[%emt 0:00:00]} e6 {[%emt 0:00:00]} 7. Be3 {[%emt 0:00:00]} Be7 {[%emt 0:00:00]} 8. Qe2 {[%emt 0:00:00]} a6 {[%emt 0:00:00]} 9. Bb3 {[%emt 0:00:00]} Qc7 {[%emt 0:00:00]} 10. O-O-O {[%emt 0:00:00]} O-O {[%emt 0:00:00]} 11. Kb1 {[%emt 0:05:01]} Nxd4 {[%emt 0:01:53]} 12. Bxd4 {[%emt 0:09:27]} b5 {[%emt 0:16:35]} 13. g4 {[%emt 0:14:07]} Nd7 {[%emt 0:13:32]} 14. a3 {[%emt 0:16:21]} Rb8 {[%emt 0:27:49]} 15. f4 {[%emt 0:18:41]} Nc5 {[%emt 0:05:07]} 16. e5 {[%emt 0:04:51]} Nxb3 {[%emt 0:01:34]} 17. exd6 {[%emt 0:04:07]} Bxd6 {[%emt 0:00:53]} 18. cxb3 {[%emt 0:00:02]} Bxf4 {[%emt 0:01:34]} 19. Rhf1 {[%emt 0:02:21]} Bb7 {[%emt 0:02:06]} 20. Ne4 {[%emt 0:05:58]} Bxe4+ {[%emt 0:01:58]} 21. Qxe4 {[%emt 0:00:02]} e5 {[%emt 0:00:16]} 22. Bc3 {[%emt 0:02:30]} Rbd8 {[%emt 0:01:47]} 23. Rde1 {[%emt 0:00:24]} f6 {[%emt 0:03:28]} 24. Re2 {[%emt 0:00:45]} Rd7 {[%emt 0:02:17]} 25. Rc2 {[%emt 0:00:52]} Qb6 {[%emt 0:02:16]} 26. Bb4 {[%emt 0:01:14]} Rfd8 {[%emt 0:02:26]} 27. Bc5 {[%emt 0:00:02]} Qb7 {[%emt 0:00:34]} 28. Re1 {[%emt 0:01:25]} Rd1+ {[%emt 0:00:57]} 29. Ka2 {[%emt 0:00:01]} Qxe4 {[%emt 0:00:16]} 30. Rxe4 {[%emt 0:00:02]} R8d2 {[%emt 0:00:11]} 31. Re2 {[%emt 0:00:03]} Rxe2 {[%emt 0:00:25]} 32. Rxe2 {[%emt 0:00:02]} Rd2 {[%emt 0:00:08]} 33. Rxd2 {[%emt 0:00:54]} Bxd2 {[%emt 0:00:09]} 34. Kb1 {[%emt 0:00:13]} Kf7 {[%emt 0:00:14]} 35. Kc2 {[%emt 0:00:06]} Bf4 {[%emt 0:00:07]} 36. h3 {[%emt 0:00:54]} Ke6 {[%emt 0:00:16]} 37. a4 {[%emt 0:00:40]} Kd5 {[%emt 0:00:18]} 38. Bf8 {[%emt 0:00:02]} g6 {[%emt 0:00:10]} 39. axb5 {[%emt 0:01:43]} axb5 {[%emt 0:00:18]} 40. Kc3 {[%emt 0:00:07]} e4 {[%emt 0:00:28]} 41. Be7 {[%emt 0:16:08]} f5 {[%emt 0:15:28]} 42. gxf5 {[%emt 0:00:03]} gxf5 {[%emt 0:00:12]} 43. Bh4 {[%emt 0:00:12]} Bd6 {[%emt 0:00:15]} 44. b4 {[%emt 0:00:00]} f4 {[%emt 0:00:00]} 45. b3 {[%emt 0:00:00]} f3 {[%emt 0:00:00]} 0-1